fUST/lending_fUST_20240927
["ID","MTS","AMOUNT","RATE_DAILY","PERIOD"]
[339288901,1727440240313,-576.93020051,0.00015231,2]
[339288903,1727440240322,-576.93020051,0.00015231,2]
[339288905,1727440240332,-576.93020051,0.00015231,2]
[339288907,1727440240342,-576.93020051,0.00015231,2]
[339288910,1727440240353,-576.93020051,0.00015231,2]
[339288912,1727440240362,-576.93020051,0.00015231,2]
[339288914,1727440240374,-576.93020051,0.00015231,2]
[339288916,1727440240384,-576.93020051,0.00015231,2]
[339288917,1727440240394,-576.93020051,0.00015231,2]
[339288919,1727440240403,-576.93020051,0.00015231,2]
[339288921,1727440240413,-576.93020051,0.00015231,2]
[339288924,1727440240424,-576.93020051,0.00015231,2]
[339288926,1727440240435,-576.93020051,0.00015231,2]
[339288928,1727440240444,-576.93020051,0.00015231,2]
[339288930,1727440240454,-576.93020051,0.00015231,2]
[339288932,1727440240464,-576.93020051,0.00015231,2]
[339288934,1727440240474,-576.93020051,0.00015231,2]
[339288936,1727440240484,-576.93020051,0.00015231,2]
[339288938,1727440240495,-576.93020051,0.00015231,2]
[339288940,1727440240503,-576.93020051,0.00015231,2]
[339288942,1727440240512,-576.93020051,0.00015231,2]
[339288944,1727440240521,-576.93020051,0.00015231,2]
[339288946,1727440240530,-576.93020051,0.00015231,2]
[339288948,1727440240540,-576.93020051,0.00015231,2]
[339288950,1727440240550,-576.93020051,0.00015231,2]
[339288952,1727440240559,-576.93020051,0.00015231,2]
[339288954,1727440240568,-576.93020051,0.00015231,2]
[339288956,1727440240577,-576.93020051,0.00015231,2]
[339288958,1727440240587,-576.93020051,0.00015231,2]
[339288960,1727440240597,-576.93020051,0.00015231,2]
[339288962,1727440240606,-576.93020051,0.00015231,2]
[339288964,1727440240615,-576.93020051,0.00015231,2]
[339288966,1727440240626,-576.93020051,0.00015231,2]
[339288968,1727440240635,-576.93020051,0.00015231,2]
[339288970,1727440240644,-576.93020051,0.00015231,2]
[339288972,1727440240654,-576.93020051,0.00015231,2]
[339288974,1727440240663,-576.93020051,0.00015231,2]
[339288976,1727440240672,-28046.12292483,0.00015235,2]
[339288978,1727440240681,-48118.6346082,0.00015235,2]
[339288980,1727440240690,-412.98479576,0.00015273,2]
[339288982,1727440240699,-500.98889275,0.00015273,2]
[339288984,1727440240708,-500.0,0.00015273,2]
[339288986,1727440240717,-206.63402172,0.00015273,2]
[339288988,1727440240727,-500.0,0.00015273,2]
[339288990,1727440240737,-245.49541572,0.00015273,2]
[339288992,1727440240746,-6610.363793,0.00015614,2]
[339288994,1727440240755,-500.0,0.00015821,2]
[339288996,1727440240764,-1000.0,0.00015821,2]
[339288998,1727440240773,-167.021309,0.0001595,2]
[339289000,1727440240783,-3000.0,0.00016,2]
[339289002,1727440240792,-3000.0,0.0001601,2]
[339289004,1727440240801,-67477.6787351,0.0001601,2]
[339289006,1727440240810,-48118.6346082,0.0001601,2]
[339289008,1727440240819,-3000.0,0.0001602,2]
[339289010,1727440240829,-3000.0,0.0001603,2]
[339289012,1727440240839,-193.14018432,0.00016109,2]
[339289014,1727440240848,-255.00573355,0.00016109,2]
[339289016,1727440240857,-4778.96315489,0.00016109,2]
[339289018,1727440240866,-150.112241,0.000163,2]
[339289020,1727440240876,-500.0,0.00016531,2]
[339289022,1727440240886,-420.0,0.00016665,2]
[339289024,1727440240895,-420.0,0.00016754,2]
[339289026,1727440240903,-167.021309,0.00016832,2]
[339289028,1727440240913,-150.112233,0.000169,2]
[339289030,1727440240922,-151.054,0.000174,3]
[339289032,1727440240931,-150.112233,0.000175,2]
[339289034,1727440240941,-150.112233,0.000181,2]
[339289036,1727440240950,-587.0,0.00018235,2]
[339289038,1727440240959,-150.112235,0.000184,2]
[339289040,1727440240968,-587.0,0.00018429,2]
[339289042,1727440240977,-150.112233,0.000188,2]
[339289044,1727440240986,-150.112233,0.000188,2]
[339289046,1727440240995,-1318.3111231,0.00018957,2]
[339289048,1727440241004,-500.0,0.00019073,2]
[339289050,1727440241013,-500.0,0.00019073,2]
[339289052,1727440241023,-500.0,0.00019073,2]
[339289054,1727440241032,-2663.88826556,0.00019078,2]
[339289056,1727440241041,-67477.6787351,0.0001909,3]
[339289058,1727440241050,-17839.71013789,0.0001909,3]
[339289553,1727440246023,-500.0,0.00019073,2]
[339289555,1727440246033,-30278.92447031,0.0001909,3]
[339289557,1727440246042,-931.20249623,0.000191,2]
[339289560,1727440246054,-18943.44035404,0.000191,2]
[339289562,1727440246063,-134955.35747,0.00019168,3]
[339289564,1727440246072,-13857.50696943,0.00019168,3]
[339289940,1727440742552,209.64,0.00010959,2]
[339289941,1727440751799,3764.925181,0.00013772,2]
[339289942,1727440752994,174.7,0.00010959,2]
[339289943,1727440754238,-160.453282,0.00014239,2]
[339289944,1727440754262,-160.453282,0.00014257,2]
[339289945,1727440754287,-160.453282,0.00014275,2]
[339289946,1727440754313,-160.453282,0.00014293,2]
[339289947,1727440754336,-160.453282,0.00014311,2]
[339289948,1727440754359,-3764.925181,0.00014457,2]
[339289949,1727440754382,-201.4890734,0.00014962,2]
[339289950,1727440754405,-1153.52223273,0.00015129,2]
[339289951,1727440754427,-1000.000001,0.00015129,2]
[339289952,1727440754451,-3764.925181,0.00015142,2]
[339289953,1727440754474,-300.0,0.00015216,2]
[339289954,1727440754496,-300.0,0.00015216,2]
[339289955,1727440754519,-500.0,0.00015217,2]
[339289956,1727440754542,-294.88402267,0.00015217,2]
[339289957,1727440754567,-1115.97160535,0.00015217,2]
[339289958,1727440754589,-500.0,0.00015217,2]
[339289959,1727440754611,-500.0,0.00015217,2]
[339289960,1727440754637,-1115.97160535,0.00015217,2]
[339289961,1727440754659,-500.0,0.00015217,2]
[339289962,1727440754683,-1115.97160535,0.00015217,2]
[339289963,1727440754708,-500.0,0.00015217,2]
[339289964,1727440754732,-1115.97160535,0.00015217,2]
[339289965,1727440754754,-500.0,0.00015217,2]
[339289966,1727440754776,-482.70919341,0.00015217,2]
[339289967,1727440754800,-1115.97160535,0.00015217,2]
[339289968,1727440754822,-1115.97160535,0.00015217,2]
[339289969,1727440754844,-500.0,0.00015217,2]
[339289970,1727440754867,-1115.97160535,0.00015217,2]
[339289971,1727440754890,-500.0,0.00015217,2]
[339289972,1727440754912,-1115.97160535,0.00015217,2]
[339289973,1727440754936,-1115.97160535,0.00015217,2]
[339289974,1727440754963,-175.90589955,0.00015217,2]
[339289975,1727440754987,-1115.97160535,0.00015217,2]
[339289976,1727440755010,-1115.97160535,0.00015217,2]
[339289977,1727440755034,-1115.97160535,0.00015217,2]
[339289978,1727440755060,-1115.97160535,0.00015217,2]
[339289979,1727440755086,-1115.97160535,0.00015217,2]
[339289980,1727440755113,-1115.97160535,0.00015217,2]
[339289981,1727440755138,-1115.97160535,0.00015217,2]
[339289982,1727440755164,-1115.97160535,0.00015217,2]
[339289983,1727440755188,-1115.97160535,0.00015217,2]
[339289984,1727440755213,-1115.97160535,0.00015217,2]
[339289985,1727440755237,-1115.97160535,0.00015217,2]
[339289986,1727440755261,-1115.97160535,0.00015217,2]
[339289987,1727440755287,-1115.97160535,0.00015217,2]
[339289988,1727440755317,-1115.97160535,0.00015217,2]
[339289989,1727440755343,-1115.97160535,0.00015217,2]
[339289990,1727440755368,-1115.97160535,0.00015217,2]
[339289991,1727440755397,-1115.97160535,0.00015217,2]
[339289992,1727440755424,-1115.97160535,0.00015217,2]
[339289993,1727440755452,-1115.97160535,0.00015217,2]
[339289994,1727440755477,-1115.97160535,0.00015217,2]
[339289995,1727440755501,-1115.97160535,0.00015217,2]
[339289996,1727440755527,-1115.97160535,0.00015217,2]
[339289997,1727440755552,-1115.97160535,0.00015217,2]
[339289998,1727440755576,-1115.97160535,0.00015217,2]
[339289999,1727440755600,-1115.97160535,0.00015217,2]
[339290000,1727440755624,-1115.97160535,0.00015217,2]
[339290001,1727440755650,-1115.97160535,0.00015217,2]
[339290002,1727440755673,-1115.97160535,0.00015217,2]
[339290003,1727440755698,-1115.97160535,0.00015217,2]
[339290004,1727440755722,-1115.97160535,0.00015217,2]
[339290005,1727440755746,-1115.97160535,0.00015217,2]
[339290006,1727440755769,-1115.97160535,0.00015217,2]
[339290007,1727440755793,-1115.97160535,0.00015217,2]
[339290008,1727440755817,-1115.97160535,0.00015217,2]
[339290009,1727440755840,-1115.97160535,0.00015217,2]
[339290010,1727440755865,-1115.97160535,0.00015217,2]
[339290011,1727440755889,-1115.97160535,0.00015217,2]
[339290013,1727440755914,-1115.97160535,0.00015217,2]
[339290015,1727440755938,-1115.97160535,0.00015217,2]
[339290017,1727440755964,-1115.97160535,0.00015217,2]
[339290018,1727440755989,-1115.97160535,0.00015217,2]
[339290019,1727440756015,-1115.97160535,0.00015217,2]
[339290020,1727440756039,-1115.97160535,0.00015217,2]
[339290021,1727440756063,-1115.97160535,0.00015217,2]
[339290022,1727440756089,-1115.97160535,0.00015217,2]
[339290023,1727440756114,-1115.97160535,0.00015217,2]
[339290024,1727440756139,-1115.97160535,0.00015217,2]
[339290025,1727440756163,-1115.97160535,0.00015217,2]
[339290026,1727440756187,-1115.97160535,0.00015217,2]
[339290027,1727440756212,-1115.97160535,0.00015217,2]
[339290028,1727440756236,-1115.97160535,0.00015217,2]
[339290029,1727440756261,-1115.97160535,0.00015217,2]
[339290030,1727440756285,-1115.97160535,0.00015217,2]
[339290031,1727440756311,-1115.97160535,0.00015217,2]
[339290032,1727440756336,-1115.97160535,0.00015217,2]
[339290033,1727440756362,-1115.97160535,0.00015217,2]
[339290034,1727440756519,-1115.97160535,0.00015217,2]
[339290035,1727440756544,-1115.97160535,0.00015217,2]
[339290036,1727440756569,-1115.97160535,0.00015217,2]
[339290037,1727440756593,-1115.97160535,0.00015217,2]
[339290038,1727440756617,-1115.97160535,0.00015217,2]
[339290039,1727440756641,-1115.97160535,0.00015217,2]
[339290040,1727440756665,-1115.97160535,0.00015217,2]
[339290041,1727440756688,-1115.97160535,0.00015217,2]
[339290042,1727440756715,-1115.97160535,0.00015217,2]
[339290043,1727440756741,-1115.97160535,0.00015217,2]
[339290044,1727440756764,-1115.97160535,0.00015217,2]
[339290045,1727440756788,-1115.97160535,0.00015217,2]
[339290046,1727440756813,-1115.97160535,0.00015217,2]
[339290047,1727440756838,-1115.97160535,0.00015217,2]
[339290048,1727440756862,-1115.97160535,0.00015217,2]
[339290049,1727440756887,-1115.97160535,0.00015217,2]
[339290050,1727440756912,-1115.97160535,0.00015217,2]
[339290051,1727440756937,-1115.97160535,0.00015217,2]
[339290052,1727440756963,-1115.97160535,0.00015217,2]
[339290053,1727440756989,-1115.97160535,0.00015217,2]
[339290054,1727440757016,-1115.97160535,0.00015217,2]
[339290055,1727440757041,-1115.97160521,0.00015217,2]
[339290056,1727440757064,-70991.3301621,0.00015218,2]
[339290057,1727440757088,-8661.19313818,0.00015218,2]
[339290058,1727440757113,-295.53082094,0.00015227,2]
[339290059,1727440757137,-500.0,0.00015227,2]
[339290060,1727440757161,-500.0,0.00015227,2]
[339290061,1727440757185,-500.0,0.00015227,2]
[339290062,1727440757211,-158.59725081,0.00015227,2]
[339290063,1727440757234,-500.52783506,0.00015227,2]
[339290064,1727440757257,-500.0,0.00015227,2]
[339290065,1727440757281,-278.90197465,0.00015227,2]
[339290066,1727440757309,-448.90534219,0.00015227,2]
[339290067,1727440757333,-500.0,0.00015227,2]
[339290068,1727440757359,-500.0,0.00015227,2]
[339290069,1727440757382,-500.0,0.00015227,2]
[339290070,1727440757405,-500.0,0.00015227,2]
[339290071,1727440757428,-500.0,0.00015227,2]
[339290072,1727440757453,-550.0,0.00015227,2]
[339290073,1727440757475,-284.856616,0.00015228,2]
[339290074,1727440763511,873.5,0.00010959,2]
[339290081,1727441137772,160.453282,0.00013623,2]
[339290083,1727441138041,160.453282,0.0001364,2]
[339290084,1727441138246,160.453282,0.00013657,2]
[339290085,1727441138469,160.453282,0.00013674,2]
[339290086,1727441138701,160.453282,0.00013691,2]
[339290087,1727441139661,250.0,0.00013623,2]
[339290089,1727441174024,-659.53073896,0.00014404,2]
[339290090,1727441174047,-2799.7569005,0.00014504,2]
[339290091,1727441174069,-653.923309,0.00014508,8]
[339290092,1727441174091,-300.0,0.00014508,2]
[339290093,1727441174114,-24900.0,0.00014509,2]
[339290094,1727441174136,-401.85899483,0.00014966,2]
[339290095,1727441174160,-500.0,0.00014966,2]
[339290096,1727441174184,-500.0,0.00014966,2]
[339290097,1727441174207,-500.0,0.00014966,2]
[339290098,1727441174232,-500.0,0.00014966,2]
[339290099,1727441174256,-500.0,0.00014966,2]
[339290100,1727441174279,-500.0,0.00014966,2]
[339290101,1727441174303,-500.0,0.00014966,2]
[339290102,1727441174327,-347.95072779,0.00014966,2]
[339290103,1727441174351,-500.0,0.00014966,2]
[339290104,1727441174374,-500.0,0.00014966,2]
[339290105,1727441174398,-500.0,0.00014966,2]
[339290106,1727441174424,-500.0,0.00014966,2]
[339290107,1727441174448,-500.0,0.00014966,2]
[339290108,1727441174475,-500.0,0.00014966,2]
[339290109,1727441174500,-500.0,0.00014966,2]
[339290110,1727441174523,-500.0,0.00014966,2]
[339290111,1727441174547,-500.0,0.00014966,2]
[339290112,1727441174571,-500.0,0.00014966,2]
[339290113,1727441174595,-500.0,0.00014966,2]
[339290114,1727441174618,-500.0,0.00014966,2]
[339290115,1727441174641,-500.0,0.00014966,2]
[339290116,1727441174665,-500.0,0.00014966,2]
[339290117,1727441174688,-500.0,0.00014966,2]
[339290118,1727441174712,-500.0,0.00014966,2]
[339290119,1727441174738,-500.0,0.00014966,2]
[339290120,1727441174761,-500.0,0.00014966,2]
[339290121,1727441174784,-500.0,0.00014966,2]
[339290122,1727441174808,-500.0,0.00014966,2]
[339290123,1727441174832,-500.0,0.00014966,2]
[339290124,1727441174855,-500.0,0.00014966,2]
[339290125,1727441174878,-297.46578283,0.00014966,2]
[339290126,1727441174902,-500.0,0.00014966,2]
[339290127,1727441174925,-500.0,0.00014966,2]
[339290128,1727441174948,-500.0,0.00014966,2]
[339290129,1727441174972,-500.0,0.00014966,2]
[339290130,1727441174995,-500.0,0.00014966,2]
[339290131,1727441175021,-500.0,0.00014966,2]
[339290132,1727441175044,-500.0,0.00014966,2]
[339290133,1727441175068,-500.0,0.00014966,2]
[339290134,1727441175092,-500.0,0.00014966,2]
[339290135,1727441175116,-500.0,0.00014966,2]
[339290136,1727441175140,-500.0,0.00014966,2]
[339290137,1727441175165,-500.0,0.00014966,2]
[339290138,1727441175190,-500.0,0.00014966,2]
[339290139,1727441175215,-500.0,0.00014966,2]
[339290140,1727441175240,-500.0,0.00014966,2]
[339290141,1727441175264,-500.0,0.00014966,2]
[339290142,1727441175288,-500.0,0.00014966,2]
[339290143,1727441175312,-500.0,0.00014966,2]
[339290144,1727441175337,-500.0,0.00014966,2]
[339290145,1727441175364,-500.0,0.00014966,2]
[339290146,1727441175389,-500.0,0.00014966,2]
[339290147,1727441175417,-500.0,0.00014966,2]
[339290148,1727441175441,-500.0,0.00014966,2]
[339290149,1727441175467,-500.0,0.00014966,2]
[339290150,1727441175492,-500.0,0.00014966,2]
[339290151,1727441175518,-500.0,0.00014966,2]
[339290152,1727441175544,-500.0,0.00014966,2]
[339290153,1727441175568,-500.0,0.00014966,2]
[339290154,1727441175594,-525.5,0.00014966,2]
[339290155,1727441175617,-1009.33195363,0.00014967,2]
[339290156,1727441175639,-604.645136,0.00015063,2]
[339290157,1727441175661,-166.666666,0.00015068,2]
[339290158,1727441175683,-593.69,0.00015234,2]
[339290159,1727441175705,-1000.0,0.00015234,2]
[339290160,1727441175728,-1000.0,0.00015234,2]
[339290161,1727441175750,-1000.0,0.00015234,2]
[339290162,1727441175772,-1000.0,0.00015234,2]
[339290163,1727441175794,-1000.0,0.00015234,2]
[339290164,1727441175816,-1000.0,0.00015234,2]
[339290165,1727441175838,-1000.0,0.00015234,2]
[339290166,1727441175859,-650.77561884,0.00015234,2]
[339290167,1727441175881,-501.4798456,0.00015273,2]
[339290168,1727441175902,-500.97611232,0.00015273,2]
[339290169,1727441175924,-500.98889275,0.00015273,2]
[339290170,1727441175946,-377.26870101,0.00015273,2]
[339290171,1727441175970,-207.22832911,0.00015273,2]
[339290172,1727441175992,-151.017,0.000154,2]
[339290173,1727441176014,-166.666666,0.00015421,2]
[339290174,1727441176036,-500.0,0.00015613,2]
[339290175,1727441176058,-200.72051167,0.00015613,2]
[339290176,1727441176080,-166.666666,0.00015774,2]
[339290177,1727441176102,-151.028,0.000158,2]
[339290178,1727441176124,-898.61209954,0.0001594,2]
[339290179,1727441176146,-420.0,0.00015959,2]
[339290180,1727441176168,-5000.0,0.00016,2]
[339290181,1727441176191,-846.25134762,0.00016,2]
[339290184,1727441254012,-2153.74865238,0.00016,2]
[339290185,1727441254037,-3000.0,0.0001601,2]
[339290186,1727441254062,-3000.0,0.0001602,2]
[339290187,1727441254086,-300.0,0.00016028,2]
[339290188,1727441254110,-300.0,0.00016028,2]
[339290189,1727441254134,-646.00082929,0.00016029,2]
[339290190,1727441254158,-257.95979639,0.00016029,2]
[339290191,1727441254183,-500.0,0.00016029,2]
[339290192,1727441254207,-155.55917928,0.00016029,2]
[339290193,1727441254230,-500.0,0.00016029,2]
[339290194,1727441254253,-500.0,0.00016029,2]
[339290195,1727441254277,-500.0,0.00016029,2]
[339290196,1727441254301,-500.0,0.00016029,2]
[339290197,1727441254326,-500.0,0.00016029,2]
[339290198,1727441254349,-500.0,0.00016029,2]
[339290199,1727441254373,-500.0,0.00016029,2]
[339290200,1727441254396,-400.46492121,0.00016029,2]
[339290201,1727441254418,-600.0,0.00016029,2]
[339290202,1727441254445,-500.0,0.00016029,2]
[339290203,1727441254469,-366.38508698,0.00016029,2]
[339290204,1727441254493,-500.0,0.00016029,2]
[339290205,1727441254518,-500.0,0.00016029,2]
[339290206,1727441254544,-500.0,0.00016029,2]
[339290207,1727441254568,-500.0,0.00016029,2]
[339290208,1727441254593,-500.0,0.00016029,2]
[339290209,1727441254617,-206.84507278,0.00016029,2]
[339290210,1727441254642,-500.0,0.00016029,2]
[339290211,1727441254665,-530.53754051,0.00016029,2]
[339290212,1727441254688,-500.0,0.00016029,2]
[339290213,1727441254710,-500.0,0.00016029,2]
[339290214,1727441254736,-500.0,0.00016029,2]
[339290215,1727441254760,-500.0,0.00016029,2]
[339290216,1727441254785,-500.0,0.00016029,2]
[339290217,1727441254807,-500.0,0.00016029,2]
[339290218,1727441254830,-463.79635047,0.00016029,2]
[339290219,1727441254853,-580.50547909,0.00016029,2]
[339290220,1727441254880,-500.0,0.00016029,2]
[339290221,1727441254904,-500.0,0.00016029,2]
[339290222,1727441254928,-416.95530516,0.00016029,2]
[339290223,1727441254954,-500.0,0.00016029,2]
[339290224,1727441254977,-200.0,0.00016029,2]
[339290225,1727441255003,-500.0,0.00016029,2]
[339290226,1727441255026,-500.0,0.00016029,2]
[339290227,1727441255052,-500.0,0.00016029,2]
[339290228,1727441255077,-500.0,0.00016029,2]
[339290229,1727441255238,-500.0,0.00016029,2]
[339290230,1727441255264,-500.0,0.00016029,2]
[339290231,1727441255291,-500.0,0.00016029,2]
[339290232,1727441255317,-500.0,0.00016029,2]
[339290233,1727441255340,-500.0,0.00016029,2]
[339290234,1727441255365,-500.0,0.00016029,2]
[339290235,1727441255389,-500.0,0.00016029,2]
[339290236,1727441255414,-500.0,0.00016029,2]
[339290237,1727441255440,-500.0,0.00016029,2]
[339290238,1727441255465,-500.0,0.00016029,2]
[339290239,1727441255489,-500.0,0.00016029,2]
[339290240,1727441255515,-500.0,0.00016029,2]
[339290241,1727441255541,-500.0,0.00016029,2]
[339290242,1727441255564,-500.0,0.00016029,2]
[339290243,1727441255589,-500.0,0.00016029,2]
[339290244,1727441255614,-500.0,0.00016029,2]
[339290245,1727441255637,-500.0,0.00016029,2]
[339290246,1727441255662,-500.0,0.00016029,2]
[339290247,1727441255686,-500.0,0.00016029,2]
[339290248,1727441255709,-500.0,0.00016029,2]
[339290249,1727441255735,-500.0,0.00016029,2]
[339290250,1727441255760,-500.0,0.00016029,2]
[339290251,1727441255785,-500.0,0.00016029,2]
[339290252,1727441255810,-500.0,0.00016029,2]
[339290253,1727441255835,-355.4005408,0.00016029,2]
[339290254,1727441255860,-500.0,0.00016029,2]
[339290255,1727441255882,-500.0,0.00016029,2]
[339290256,1727441255905,-500.0,0.00016029,2]
[339290257,1727441255928,-500.0,0.00016029,2]
[339290258,1727441255951,-266.66655924,0.00016029,2]
[339290259,1727441255978,-500.0,0.00016029,2]
[339290260,1727441256001,-162.59774649,0.00016029,2]
[339290261,1727441256025,-500.0,0.00016029,2]
[339290262,1727441256057,-500.0,0.00016029,2]
[339290263,1727441256079,-500.0,0.00016029,2]
[339290264,1727441256101,-500.0,0.00016029,2]
[339290265,1727441256125,-500.0,0.00016029,2]
[339290266,1727441256147,-500.0,0.00016029,2]
[339290267,1727441256170,-500.0,0.00016029,2]
[339290268,1727441256194,-500.0,0.00016029,2]
[339290269,1727441256217,-500.0,0.00016029,2]
[339290270,1727441256243,-500.0,0.00016029,2]
[339290271,1727441256267,-250.0,0.00016029,2]
[339290272,1727441256292,-2173.29343462,0.0001603,2]
[339290273,1727441256315,-3000.0,0.0001603,2]
[339290274,1727441256338,-75106.281679,0.0001603,2]
[339290275,1727441256362,-78796.7479242,0.0001603,2]
[339290276,1727441256386,-2000.0,0.0001604,2]
[339290277,1727441256409,-2000.0,0.0001604,2]
[339290278,1727441256434,-2000.0,0.0001604,2]
[339290279,1727441256459,-2000.0,0.0001604,2]
[339290280,1727441256483,-2000.0,0.0001604,2]
[339290281,1727441256505,-2000.0,0.0001604,2]
[339290282,1727441256531,-3000.0,0.0001604,2]
[339290283,1727441256553,-3000.0,0.0001605,2]
[339290284,1727441256576,-3000.0,0.0001606,2]
[339290285,1727441256600,-3000.0,0.0001607,2]
[339290286,1727441256623,-500.0,0.00016073,2]
[339290287,1727441256646,-501.76654759,0.00016073,2]
[339290288,1727441256667,-397.48735452,0.00016073,2]
[339290292,1727441349351,-283.8517629,0.00014728,2]
[339290293,1727441349376,-250.0,0.00015231,2]
[339290294,1727441349397,-250.0,0.00015273,2]
[339290295,1727441349419,-250.0,0.00015315,2]
[339290296,1727441349440,-250.0,0.00015356,2]
[339290297,1727441349462,-250.0,0.00015398,2]
[339290298,1727441349486,-250.0,0.0001544,2]
[339290303,1727441392971,3000.0,0.00014878,2]
[339290305,1727441403650,500.0,0.00015234,2]
[339290342,1727441432228,-250.0,0.00015482,2]
[339290344,1727441432238,-250.0,0.00015524,2]
[339290346,1727441432247,-250.0,0.00015565,2]
[339290348,1727441432257,-250.0,0.00015607,2]
[339290350,1727441432266,-250.0,0.00015649,2]
[339290351,1727441432275,-250.0,0.00015691,2]
[339290352,1727441432284,-250.0,0.00015732,2]
[339290353,1727441432293,-250.0,0.00015774,2]
[339290355,1727441432302,-250.0,0.00015816,2]
[339290357,1727441432311,-250.0,0.00015858,2]
[339290359,1727441432321,-250.0,0.000159,2]
[339290361,1727441432330,-193.14018432,0.000159,2]
[339290363,1727441432339,-250.0,0.00015941,2]
[339290365,1727441432348,-250.0,0.00015983,2]
[339290367,1727441432357,-250.0,0.00016025,2]
[339290369,1727441432367,-300.0,0.00016067,2]
[339290371,1727441432376,-300.0,0.00016067,2]
[339290373,1727441432386,-16456.2669627,0.00016068,2]
[339290375,1727441432395,-102.51264548,0.00016073,2]
[339290377,1727441432404,-500.0,0.00016073,2]
[339290379,1727441432413,-412.98479576,0.00016073,2]
[339290381,1727441432423,-500.0,0.00016073,2]
[339290383,1727441432433,-500.0,0.00016073,2]
[339290385,1727441432442,-500.0,0.00016073,2]
[339290387,1727441432452,-211.12936583,0.00016073,2]
[339290389,1727441432461,-500.0,0.00016073,2]
[339290391,1727441432471,-500.0,0.00016073,2]
[339290393,1727441432480,-500.0,0.00016073,2]
[339290395,1727441432490,-502.2351556,0.00016073,2]
[339290396,1727441432501,-500.0,0.00016073,2]
[339290397,1727441432511,-500.0,0.00016079,2]
[339290398,1727441432520,-500.0,0.00016079,2]
[339290399,1727441432529,-457.95530517,0.00016079,2]
[339290400,1727441432539,-500.0,0.00016079,2]
[339290401,1727441432549,-431.22456136,0.00016079,2]
[339290402,1727441432558,-500.0,0.00016079,2]
[339290403,1727441432567,-3000.0,0.0001608,2]
[339290404,1727441432577,-1000.0,0.00016088,2]
[339290405,1727441432586,-1000.0,0.00016088,2]
[339290406,1727441432596,-1000.0,0.00016088,2]
[339290407,1727441432605,-1000.0,0.00016088,2]
[339290408,1727441432614,-520.63026515,0.00016088,2]
[339290409,1727441432623,-1001.89107665,0.00016089,2]
[339290410,1727441432632,-3000.0,0.0001609,2]
[339290411,1727441432641,-3000.0,0.000161,2]
[339290412,1727441432650,-3000.0,0.0001611,2]
[339290413,1727441432659,-3000.0,0.0001612,2]
[339290414,1727441432670,-166.666666,0.00016126,2]
[339290415,1727441432681,-3000.0,0.0001613,2]
[339290416,1727441432690,-3000.0,0.0001614,2]
[339290417,1727441432699,-3000.0,0.0001615,2]
[339290418,1727441432708,-8228.13348134,0.0001615,2]
[339290419,1727441432718,-3000.0,0.0001616,2]
[339290420,1727441432727,-3000.0,0.0001617,2]
[339290421,1727441432736,-3000.0,0.0001618,2]
[339290422,1727441432746,-3000.0,0.0001619,2]
[339290423,1727441432755,-3000.0,0.000162,2]
[339290424,1727441432764,-3000.0,0.0001621,2]
[339290425,1727441432774,-3000.0,0.0001622,2]
[339290426,1727441432783,-255.49503227,0.00016229,2]
[339290427,1727441432792,-231.07289287,0.00016229,2]
[339290428,1727441432802,-572.06947342,0.00016229,2]
[339290429,1727441432812,-171.84954488,0.00016229,2]
[339290430,1727441432821,-500.0,0.00016229,2]
[339290431,1727441432830,-500.0,0.00016229,2]
[339290432,1727441432840,-500.0,0.00016229,2]
[339290433,1727441432849,-3000.0,0.0001623,2]
[339290434,1727441432859,-3000.0,0.0001624,2]
[339290435,1727441432868,-3000.0,0.0001625,2]
[339290436,1727441432877,-1448.86228975,0.0001625,2]